[Event "24th European Women Club Cup 2019"]
[Site "Ulcinj"]
[Date "2019.11.15"]
[Round "6.3"]
[White "Batsiashvili, Nino"]
[Black "Abdumalik, Zhansaya"]
[Result "1-0"]
[ECO "A34"]
[WhiteElo "2422"]
[BlackElo "2472"]
[Annotator "ChessBase"]
[PlyCount "171"]
[EventDate "2019.11.10"]
[EventType "team-tourn"]
[EventCountry "MNE"]
[SourceTitle "playchess.com"]
[Source "ChessBase"]
[SourceQuality "1"]
[WhiteTeam "Nona"]
[BlackTeam "Kyiv"]
[TimeControl "40/5400+30:1800+30"]

1. Nf3 {[%emt 0:00:00]} Nf6 {[%emt 0:00:00]} 2. c4 {[%emt 0:00:00]} c5 {[%emt 0:00:01]} 3. Nc3 {[%emt 0:00:00]} d5 {[%emt 0:00:18]} 4. cxd5 {[%emt 0:00:00]} Nxd5 {[%emt 0:00:07]} 5. e3 {[%emt 0:00:00]} Nxc3 {[%emt 0:00:38]} 6. dxc3 {[%emt 0:00:00]} Qc7 {[%emt 0:00:39]} 7. e4 {[%emt 0:00:06]} Nc6 {[%emt 0:00:59]} 8. Be3 {[%emt 0:00:08]} e6 {[%emt 0:00:47]} 9. Nd2 {[%emt 0:00:12]} Be7 {[%emt 0:01:03]} 10. f4 {[%emt 0:00:13]} b6 {[%emt 0:03:38]} 11. Bd3 {[%emt 0:00:30]} O-O {[%emt 0:04:27]} 12. e5 {[%emt 0:02:20]} Rd8 {[%emt 0:02:58]} 13. Qe2 {[%emt 0:00:21]} Bb7 {[%emt 0:03:43]} 14. O-O {[%emt 0:01:38]} Bf8 {[%emt 0:04:24]} 15. Rf3 {[%emt 0:03:52]} h6 {[%emt 0:08:29]} 16. Ne4 {[%emt 0:11:36]} Ne7 {[%emt 0:03:40]} 17. Bf2 {[%emt 0:15:02]} Nf5 {[%emt 0:06:42]} 18. Re1 {[%emt 0:05:06]} Bd5 {[%emt 0:08:00]} 19. Bb1 {[%emt 0:06:34]} c4 {[%emt 0:06:55]} 20. Qc2 {[%emt 0:05:51]} h5 {[%emt 0:06:25]} 21. Rh3 {[%emt 0:00:15]} Bxe4 {[%emt 0:00:34]} 22. Qxe4 {[%emt 0:02:12]} g6 {[%emt 0:03:45]} 23. Qe2 {[%emt 0:03:35]} Bc5 {[%emt 0:02:14]} 24. Rf3 {[%emt 0:06:20]} b5 {[%emt 0:04:00]} 25. h3 {[%emt 0:04:35]} Qb6 {[%emt 0:05:12]} 26. Bxc5 {[%emt 0:03:55]} Qxc5+ {[%emt 0:00:04]} 27. Kh2 {[%emt 0:00:03]} Kg7 {[%emt 0:03:35]} 28. Bxf5 {[%emt 0:06:05]} exf5 {[%emt 0:00:06]} 29. e6 {[%emt 0:00:04]} Re8 {[%emt 0:03:35]} 30. Re3 {[%emt 0:01:10]} Qd6 {[%emt 0:01:45]} 31. e7 {[%emt 0:06:35]} Qxf4+ {[%emt 0:01:13]} 32. Kh1 {[%emt 0:00:00]} a6 {[%emt 0:01:47]} 33. Qd1 {[%emt 0:00:32]} Qh4 {[%emt 0:04:02]} 34. Qd7 {[%emt 0:00:32]} Qf6 {[%emt 0:00:42]} 35. a4 {[%emt 0:00:41]} f4 {[%emt 0:01:31]} 36. Rf3 {[%emt 0:00:10]} bxa4 {[%emt 0:01:07]} 37. Re4 {[%emt 0:03:34]} g5 {[%emt 0:03:15]} 38. h4 {[%emt 0:00:11]} Qg6 {[%emt 0:01:31]} 39. Qd4+ {[%emt 0:00:39]} Kg8 {[%emt 0:01:15]} 40. hxg5 {[%emt 0:00:00]} Rab8 {[%emt 0:00:00]} 41. Rfxf4 {[%emt 0:11:57]} Rxb2 {[%emt 0:05:15]} 42. Qxc4 {[%emt 0:12:44]} Rb7 {[%emt 0:06:37]} 43. Rf6 {[%emt 0:08:01]} Qg7 {[%emt 0:00:03]} 44. Qc5 {[%emt 0:00:50]} a3 {[%emt 0:06:21]} 45. Rxa6 {[%emt 0:00:15]} a2 {[%emt 0:02:58]} 46. Rxa2 {[%emt 0:00:14]} Qg6 {[%emt 0:00:05]} 47. Rae2 {[%emt 0:00:14]} Rb1+ {[%emt 0:02:44]} 48. Kh2 {[%emt 0:00:07]} Qa6 {[%emt 0:00:23]} 49. Qe5 {[%emt 0:02:47]} Rb6 {[%emt 0:00:57]} 50. Qf5 {[%emt 0:00:41]} Qb7 {[%emt 0:00:23]} 51. c4 {[%emt 0:01:14]} Qc7+ {[%emt 0:00:18]} 52. Kh3 {[%emt 0:04:01]} Rb3+ {[%emt 0:00:52]} 53. R2e3 {[%emt 0:00:08]} Rb1 {[%emt 0:03:53]} 54. g3 {[%emt 0:01:29]} Rb6 {[%emt 0:01:21]} 55. c5 {[%emt 0:02:18]} Rc6 {[%emt 0:00:03]} 56. Re5 {[%emt 0:00:07]} Qb7 {[%emt 0:00:12]} 57. Re1 {[%emt 0:00:12]} Qa7 {[%emt 0:00:35]} 58. R1e2 {[%emt 0:01:07]} Qc7 {[%emt 0:00:43]} 59. Re1 {[%emt 0:01:03]} Qa7 {[%emt 0:00:05]} 60. Qd3 {[%emt 0:00:47]} Qc7 {[%emt 0:01:35]} 61. Qd5 {[%emt 0:00:08]} Rg6 {[%emt 0:00:49]} 62. Rd1 {[%emt 0:01:04]} Kg7 {[%emt 0:00:48]} 63. Rde1 {[%emt 0:00:47]} Kg8 {[%emt 0:00:36]} 64. Kg2 {[%emt 0:00:33]} Ra6 {[%emt 0:00:31]} 65. R1e2 {[%emt 0:00:04]} Rg6 {[%emt 0:00:13]} 66. Rd2 {[%emt 0:01:22]} Kg7 {[%emt 0:00:28]} 67. Qe4 {[%emt 0:00:24]} Ra6 {[%emt 0:01:30]} 68. Qd4 {[%emt 0:00:18]} Kh7 {[%emt 0:00:48]} 69. Rf2 {[%emt 0:01:19]} Qc6+ {[%emt 0:02:09]} 70. Kh2 {[%emt 0:00:43]} Kg8 {[%emt 0:00:51]} 71. Qf4 {[%emt 0:01:37]} Qg6 {[%emt 0:00:11]} 72. Qe4 {[%emt 0:00:12]} Kg7 {[%emt 0:01:12]} 73. Qxg6+ {[%emt 0:00:53]} Kxg6 {[%emt 0:00:02]} 74. Kh3 {[%emt 0:00:07]} Ra7 {[%emt 0:00:17]} 75. Rf6+ {[%emt 0:00:32]} Kg7 {[%emt 0:00:06]} 76. Kh4 {[%emt 0:00:26]} Rexe7 {[%emt 0:00:35]} 77. Rxe7 {[%emt 0:00:01]} Rxe7 {[%emt 0:00:06]} 78. Kxh5 {[%emt 0:00:09]} Re3 {[%emt 0:00:40]} 79. Kg4 {[%emt 0:00:14]} Rc3 {[%emt 0:00:05]} 80. c6 {[%emt 0:00:09]} Rc4+ {[%emt 0:02:13]} 81. Kf5 {[%emt 0:00:03]} Rc5+ {[%emt 0:01:32]} 82. Kf4 {[%emt 0:00:04]} Rc3 {[%emt 0:00:11]} 83. Ke5 {[%emt 0:00:22]} Rxg3 {[%emt 0:04:17]} 84. c7 {[%emt 0:00:10]} Rc3 {[%emt 0:00:16]} 85. Kd6 {[%emt 0:00:05]} Kf8 {[%emt 0:00:59]} 86. Kd7 {[%emt 0:00:07]} 1-0

[Event "24th European Women Club Cup 2019"]
[Site "Ulcinj"]
[Date "2019.11.15"]
[Round "6.4"]
[White "Osmak, Iulija"]
[Black "Khotenashvili, Bela"]
[Result "0-1"]
[ECO "C72"]
[WhiteElo "2401"]
[BlackElo "2446"]
[Annotator "NA"]
[PlyCount "102"]
[EventDate "2019.11.10"]
[EventType "team-tourn"]
[EventCountry "MNE"]
[SourceTitle "playchess.com"]
[Source "ChessBase"]
[SourceQuality "1"]
[WhiteTeam "Kyiv"]
[BlackTeam "Nona"]
[TimeControl "40/5400+30:1800+30"]

1. e4 {[%emt 0:00:00]} e5 {[%emt 0:00:00]} 2. Nf3 {[%emt 0:00:00]} Nc6 {[%emt 0:00:00]} 3. Bb5 {[%emt 0:00:00]} a6 {[%emt 0:00:00]} 4. Ba4 {[%emt 0:00:00]} d6 {[%emt 0:00:01]} 5. O-O {[%emt 0:01:12]} Bd7 {[%emt 0:01:28]} 6. c4 {[%emt 0:04:39]} Nf6 {[%emt 0:08:06]} 7. Nc3 {[%emt 0:02:54]} Be7 {[%emt 0:04:42]} 8. d3 {[%emt 0:03:18]} O-O {[%emt 0:10:35]} 9. h3 {[%emt 0:04:02]} Nd4 {[%emt 0:03:25]} 10. Nxd4 {[%emt 0:04:52]} Bxa4 {[%emt 0:00:31]} 11. Qxa4 {[%emt 0:01:14]} exd4 {[%emt 0:00:05]} 12. Ne2 {[%emt 0:04:13]} c5 {[%emt 0:00:32]} 13. Nf4 {[%emt 0:11:28]} b5 {[%emt 0:03:38]} 14. cxb5 {[%emt 0:01:51]} Qd7 {[%emt 0:01:22]} 15. Qc2 {[%emt 0:04:32]} axb5 {[%emt 0:10:58]} 16. b3 {[%emt 0:02:19]} Rfc8 {[%emt 0:06:26]} 17. Bb2 {[%emt 0:02:28]} Bf8 {[%emt 0:09:53]} 18. a3 {[%emt 0:15:31]} Ra6 {[%emt 0:02:08]} 19. Rae1 {[%emt 0:01:42]} Re8 {[%emt 0:01:18]} 20. Re2 {[%emt 0:04:35]} Re5 {[%emt 0:11:37]} 21. Ree1 {[%emt 0:03:26]} d5 {[%emt 0:01:39]} 22. exd5 {[%emt 0:04:45]} Rf5 {[%emt 0:00:35]} 23. Ne2 {[%emt 0:02:30]} Nxd5 {[%emt 0:01:52]} 24. Ng3 {[%emt 0:00:48]} Rg5 {[%emt 0:02:23]} 25. Bc1 {[%emt 0:01:13]} Rgg6 {[%emt 0:02:22]} 26. Re5 {[%emt 0:03:04]} Rae6 {[%emt 0:01:30]} 27. Rxe6 {[%emt 0:02:11]} Qxe6 {[%emt 0:00:50]} 28. Kh1 {[%emt 0:05:16]} Qc6 {[%emt 0:05:26]} 29. Bd2 {[%emt 0:05:16]} Bd6 {[%emt 0:06:15]} 30. Ne4 {[%emt 0:00:23]} h6 {[%emt 0:03:45]} 31. Rg1 {[%emt 0:02:07]} Be7 {[%emt 0:00:36]} 32. Qd1 {[%emt 0:00:21]} c4 {[%emt 0:01:23]} 33. bxc4 {[%emt 0:00:24]} bxc4 {[%emt 0:00:01]} 34. dxc4 {[%emt 0:00:20]} Nb6 {[%emt 0:00:25]} 35. c5 {[%emt 0:01:34]} Nc4 {[%emt 0:00:21]} 36. Qf3 {[%emt 0:01:24]} Re6 {[%emt 0:00:58]} 37. Qd3 {[%emt 0:00:27]} Qd5 {[%emt 0:00:32]} 38. f3 {[%emt 0:00:40]} Nxd2 {[%emt 0:00:34]} 39. Qxd2 {[%emt 0:01:07]} f5 {[%emt 0:00:32]} 40. Nf2 {[%emt 0:00:00]} Bxc5 {[%emt 0:00:00]} 41. Nd3 {[%emt 0:06:40]} Bd6 {[%emt 0:02:34]} 42. Nf4 {[%emt 0:11:16]} Bxf4 {[%emt 0:05:06]} 43. Qxf4 {[%emt 0:00:03]} d3 {[%emt 0:00:16]} 44. Rd1 {[%emt 0:00:50]} Re2 {[%emt 0:00:43]} 45. a4 {[%emt 0:03:43]} d2 {[%emt 0:01:55]} 46. Kh2 {[%emt 0:00:44]} Qd3 {[%emt 0:02:07]} 47. a5 {[%emt 0:07:18]} Rxg2+ {[%emt 0:03:56]} 48. Kxg2 {[%emt 0:02:05]} Qe2+ {[%emt 0:00:06]} 49. Kg3 {[%emt 0:00:04]} Qxd1 {[%emt 0:00:04]} 50. Qc4+ {[%emt 0:01:24]} Kh7 {[%emt 0:00:07]} 51. Qd3 {[%emt 0:01:34]} Qg1+ {[%emt 0:00:07]} 0-1

[Event "24th European Women Club Cup 2019"]
[Site "Ulcinj"]
[Date "2019.11.15"]
[Round "6.5"]
[White "Mammadzada, Gunay"]
[Black "Koneru, Humpy"]
[Result "1-0"]
[ECO "E04"]
[WhiteElo "2427"]
[BlackElo "2577"]
[Annotator "ChessBase"]
[PlyCount "89"]
[EventDate "2019.11.10"]
[EventType "team-tourn"]
[EventCountry "MNE"]
[SourceTitle "playchess.com"]
[Source "ChessBase"]
[SourceQuality "1"]
[WhiteTeam "Odlar Yurdu"]
[BlackTeam "Cercle d`Echecs"]
[TimeControl "40/5400+30:1800+30"]

1. d4 {[%emt 0:00:00]} Nf6 {[%emt 0:00:00]} 2. c4 {[%emt 0:00:00]} e6 {[%emt 0:00:00]} 3. g3 {[%emt 0:00:00]} d5 {[%emt 0:00:22]} 4. Bg2 {[%emt 0:00:00]} dxc4 {[%emt 0:00:31]} 5. Nf3 {[%emt 0:00:19]} a6 {[%emt 0:00:27]} 6. O-O {[%emt 0:00:12]} Nc6 {[%emt 0:00:45]} 7. e3 {[%emt 0:00:39]} Bd7 {[%emt 0:00:58]} 8. Qe2 {[%emt 0:00:23]} Bd6 {[%emt 0:00:51]} 9. Qxc4 {[%emt 0:01:23]} O-O {[%emt 0:00:13]} 10. Rd1 {[%emt 0:02:21]} Qe7 {[%emt 0:02:18]} 11. Qe2 {[%emt 0:03:46]} e5 {[%emt 0:19:35]} 12. dxe5 {[%emt 0:10:33]} Bxe5 {[%emt 0:02:35]} 13. Nxe5 {[%emt 0:11:40]} Nxe5 {[%emt 0:01:06]} 14. Nc3 {[%emt 0:05:08]} Rad8 {[%emt 0:07:40]} 15. e4 {[%emt 0:14:35]} Bg4 {[%emt 0:17:07]} 16. f3 {[%emt 0:00:11]} Rxd1+ {[%emt 0:00:09]} 17. Nxd1 {[%emt 0:03:38]} Be6 {[%emt 0:00:54]} 18. Nf2 {[%emt 0:07:56]} Rd8 {[%emt 0:03:50]} 19. b3 {[%emt 0:13:24]} c5 {[%emt 0:07:40]} 20. Bb2 {[%emt 0:01:08]} Nc6 {[%emt 0:01:05]} 21. e5 {[%emt 0:03:58]} Bd5 {[%emt 0:05:00]} 22. Re1 {[%emt 0:06:13]} Ne8 {[%emt 0:06:26]} 23. f4 {[%emt 0:00:56]} Bxg2 {[%emt 0:03:16]} 24. Kxg2 {[%emt 0:00:01]} Qe6 {[%emt 0:06:02]} 25. Rd1 {[%emt 0:05:58]} Nc7 {[%emt 0:04:56]} 26. Rxd8+ {[%emt 0:01:06]} Nxd8 {[%emt 0:00:02]} 27. Qd3 {[%emt 0:00:41]} Qd5+ {[%emt 0:03:06]} 28. Qxd5 {[%emt 0:00:54]} Nxd5 {[%emt 0:00:02]} 29. Kf3 {[%emt 0:01:06]} Kf8 {[%emt 0:01:11]} 30. Ke4 {[%emt 0:00:57]} Nc7 {[%emt 0:00:28]} 31. f5 {[%emt 0:01:05]} Nc6 {[%emt 0:02:50]} 32. Nd3 {[%emt 0:00:18]} b6 {[%emt 0:00:01]} 33. Nf4 {[%emt 0:02:21]} Ke7 {[%emt 0:00:34]} 34. g4 {[%emt 0:00:39]} f6 {[%emt 0:02:57]} 35. Nh5 {[%emt 0:03:16]} Ne8 {[%emt 0:00:39]} 36. Nxg7 {[%emt 0:00:32]} Nxe5 {[%emt 0:01:28]} 37. Nxe8 {[%emt 0:00:39]} Nxg4 {[%emt 0:00:05]} 38. Nc7 {[%emt 0:00:28]} Kd6 {[%emt 0:00:15]} 39. Ne8+ {[%emt 0:00:27]} Ke7 {[%emt 0:00:05]} 40. Nc7 {[%emt 0:00:00]} Kd6 {[%emt 0:00:00]} 41. Ne6 {[%emt 0:07:58]} Nxh2 {[%emt 0:00:26]} 42. Bxf6 {[%emt 0:00:26]} Ng4 {[%emt 0:00:08]} 43. Bh4 {[%emt 0:02:11]} b5 {[%emt 0:00:16]} 44. Bg3+ {[%emt 0:00:46]} Kc6 {[%emt 0:00:13]} 45. Be5 {[%emt 0:00:58] Kd5+} 1-0

[Event "24th European Women Club Cup 2019"]
[Site "Ulcinj"]
[Date "2019.11.15"]
[Round "6.7"]
[White "Mammadova, Gulnar"]
[Black "Socko, Monika"]
[Result "1/2-1/2"]
[ECO "B20"]
[WhiteElo "2369"]
[BlackElo "2417"]
[Annotator "NA"]
[PlyCount "136"]
[EventDate "2019.11.10"]
[EventType "team-tourn"]
[EventCountry "MNE"]
[SourceTitle "playchess.com"]
[Source "ChessBase"]
[SourceQuality "1"]
[WhiteTeam "Odlar Yurdu"]
[BlackTeam "Cercle d`Echecs"]
[TimeControl "40/5400+30:1800+30"]

1. e4 {[%emt 0:00:00]} c5 {[%emt 0:00:00]} 2. b3 {[%emt 0:00:00]} g6 {[%emt 0:00:27]} 3. Bb2 {[%emt 0:00:06]} Nf6 {[%emt 0:00:14]} 4. Nc3 {[%emt 0:03:49]} Nc6 {[%emt 0:05:55]} 5. f4 {[%emt 0:04:02]} d6 {[%emt 0:04:45]} 6. Bb5 {[%emt 0:02:43]} Bg7 {[%emt 0:03:02]} 7. Qe2 {[%emt 0:02:12]} Bd7 {[%emt 0:10:48]} 8. Bxc6 {[%emt 0:08:48]} Bxc6 {[%emt 0:00:30]} 9. O-O-O {[%emt 0:01:24]} O-O {[%emt 0:01:38]} 10. Nf3 {[%emt 0:02:10]} b5 {[%emt 0:03:53]} 11. e5 {[%emt 0:03:59]} Nh5 {[%emt 0:06:13]} 12. Qe3 {[%emt 0:03:52]} Qd7 {[%emt 0:06:29]} 13. Ne2 {[%emt 0:06:57]} a5 {[%emt 0:06:28]} 14. d4 {[%emt 0:04:33]} cxd4 {[%emt 0:07:36]} 15. Nexd4 {[%emt 0:01:49]} Rac8 {[%emt 0:00:45]} 16. Rhg1 {[%emt 0:05:36]} Bxf3 {[%emt 0:03:57]} 17. Nxf3 {[%emt 0:01:22]} Qf5 {[%emt 0:04:19]} 18. Rd2 {[%emt 0:02:07]} Nxf4 {[%emt 0:06:07]} 19. exd6 {[%emt 0:10:25]} exd6 {[%emt 0:10:00]} 20. g4 {[%emt 0:16:02]} Bxb2+ {[%emt 0:04:59]} 21. Kxb2 {[%emt 0:00:03]} Qf6+ {[%emt 0:00:03]} 22. Qd4 {[%emt 0:00:36]} Qxd4+ {[%emt 0:00:26]} 23. Nxd4 {[%emt 0:00:03]} Rc5 {[%emt 0:00:23]} 24. Rf1 {[%emt 0:01:43]} Nd5 {[%emt 0:00:49]} 25. Rf3 {[%emt 0:04:09]} Nc7 {[%emt 0:02:24]} 26. Ne2 {[%emt 0:01:44]} Re8 {[%emt 0:01:42]} 27. Nf4 {[%emt 0:01:28]} d5 {[%emt 0:00:57]} 28. Rfd3 {[%emt 0:01:12]} Re5 {[%emt 0:00:36]} 29. Rf3 {[%emt 0:02:44]} Re4 {[%emt 0:00:25]} 30. Nd3 {[%emt 0:01:02]} Rc6 {[%emt 0:00:05]} 31. Rdf2 {[%emt 0:00:11]} Re7 {[%emt 0:03:27]} 32. h4 {[%emt 0:00:22]} b4 {[%emt 0:00:55]} 33. h5 {[%emt 0:02:14]} Nb5 {[%emt 0:01:27]} 34. h6 {[%emt 0:01:41]} Rce6 {[%emt 0:01:39]} 35. Rf6 {[%emt 0:02:55]} Nc3 {[%emt 0:00:34]} 36. Rxe6 {[%emt 0:00:42]} fxe6 {[%emt 0:00:35]} 37. Rf6 {[%emt 0:00:53]} Ne4 {[%emt 0:00:14]} 38. Rf1 {[%emt 0:00:31]} Rf7 {[%emt 0:01:57]} 39. Re1 {[%emt 0:00:06]} g5 {[%emt 0:00:52]} 40. a3 {[%emt 0:00:00]} bxa3+ {[%emt 0:00:00]} 41. Kxa3 {[%emt 0:00:47]} Rf6 {[%emt 0:04:17]} 42. Ka4 {[%emt 0:03:35]} Rxh6 {[%emt 0:00:52]} 43. Kxa5 {[%emt 0:01:26]} Rh2 {[%emt 0:00:51]} 44. Rc1 {[%emt 0:02:44]} Rg2 {[%emt 0:02:21]} 45. b4 {[%emt 0:04:11]} Rxg4 {[%emt 0:03:19]} 46. b5 {[%emt 0:00:40]} Nd6 {[%emt 0:01:19]} 47. b6 {[%emt 0:03:45]} h5 {[%emt 0:01:49]} 48. Nc5 {[%emt 0:01:46]} h4 {[%emt 0:03:34]} 49. Nxe6 {[%emt 0:02:51]} Rg2 {[%emt 0:04:34]} 50. Kb4 {[%emt 0:02:15]} Kf7 {[%emt 0:01:11]} 51. Nd4 {[%emt 0:03:45]} h3 {[%emt 0:00:59]} 52. Kc5 {[%emt 0:00:31]} h2 {[%emt 0:04:06]} 53. Rh1 {[%emt 0:01:05]} Nb7+ {[%emt 0:02:27]} 54. Kc6 {[%emt 0:04:18]} Na5+ {[%emt 0:01:46]} 55. Kb5 {[%emt 0:00:37]} Nc4 {[%emt 0:00:59]} 56. Nf3 {[%emt 0:02:42]} Rxc2 {[%emt 0:02:35]} 57. Nxg5+ {[%emt 0:00:10]} Ke7 {[%emt 0:00:07]} 58. Nf3 {[%emt 0:00:13]} Nd6+ {[%emt 0:00:30]} 59. Kb4 {[%emt 0:00:47]} Rf2 {[%emt 0:00:32]} 60. Nxh2 {[%emt 0:00:20]} Kd7 {[%emt 0:00:27]} 61. Kc5 {[%emt 0:00:54]} Rd2 {[%emt 0:00:34]} 62. Nf3 {[%emt 0:00:51]} Nb7+ {[%emt 0:00:18]} 63. Kb4 {[%emt 0:01:16]} Rb2+ {[%emt 0:00:04]} 64. Kc3 {[%emt 0:00:02]} Rxb6 {[%emt 0:00:03]} 65. Kd4 {[%emt 0:00:07]} Rd6 {[%emt 0:01:56]} 66. Rh7+ {[%emt 0:00:40]} Kc6 {[%emt 0:01:07]} 67. Ne5+ {[%emt 0:00:07]} Kb6 {[%emt 0:00:01]} 68. Rd7 {[%emt 0:00:16]} Rxd7 {[%emt 0:00:40]} 1/2-1/2

[Event "24th European Women Club Cup 2019"]
[Site "Ulcinj"]
[Date "2019.11.15"]
[Round "6.8"]
[White "Skripchenko, Almira"]
[Black "Balajayeva, Khanim"]
[Result "1/2-1/2"]
[ECO "B17"]
[WhiteElo "2403"]
[BlackElo "2368"]
[Annotator "NA"]
[PlyCount "36"]
[EventDate "2019.11.10"]
[EventType "team-tourn"]
[EventCountry "MNE"]
[SourceTitle "playchess.com"]
[Source "ChessBase"]
[SourceQuality "1"]
[WhiteTeam "Cercle d`Echecs"]
[BlackTeam "Odlar Yurdu"]
[TimeControl "40/5400+30:1800+30"]

1. e4 {[%emt 0:00:00]} c6 {[%emt 0:00:00]} 2. d4 {[%emt 0:02:57]} d5 {[%emt 0:00:00]} 3. Nd2 {[%emt 0:00:05]} dxe4 {[%emt 0:00:00]} 4. Nxe4 {[%emt 0:00:03]} Nd7 {[%emt 0:00:00]} 5. Bc4 {[%emt 0:04:57]} Ngf6 {[%emt 0:00:22]} 6. Nxf6+ {[%emt 0:00:17]} Nxf6 {[%emt 0:00:14]} 7. c3 {[%emt 0:00:07]} Qc7 {[%emt 0:01:32]} 8. Ne2 {[%emt 0:08:10]} e6 {[%emt 0:04:34]} 9. Bf4 {[%emt 0:06:31]} Bd6 {[%emt 0:00:27]} 10. Bxd6 {[%emt 0:00:32]} Qxd6 {[%emt 0:00:03]} 11. Qd2 {[%emt 0:00:10]} O-O {[%emt 0:03:37]} 12. Qe3 {[%emt 0:02:36]} Re8 {[%emt 0:12:15]} 13. Qe5 {[%emt 0:06:29]} Qe7 {[%emt 0:10:18]} 14. Rd1 {[%emt 0:05:01]} Nd7 {[%emt 0:07:29]} 15. Qc7 {[%emt 0:01:00]} Nf6 {[%emt 0:03:20]} 16. Qe5 {[%emt 0:07:46]} Nd7 {[%emt 0:00:17]} 17. Qc7 {[%emt 0:00:06]} Nf6 {[%emt 0:00:12]} 18. Qe5 {[%emt 0:00:05]} Nd7 1/2-1/2

[Event "24th European Women Club Cup 2019"]
[Site "Ulcinj"]
[Date "2019.11.15"]
[Round "6.9"]
[White "Ushenina, Anna"]
[Black "Shuvalova, Polina"]
[Result "1/2-1/2"]
[ECO "D35"]
[WhiteElo "2439"]
[BlackElo "2434"]
[Annotator "NA"]
[PlyCount "66"]
[EventDate "2019.11.10"]
[EventType "team-tourn"]
[EventCountry "MNE"]
[SourceTitle "playchess.com"]
[Source "ChessBase"]
[SourceQuality "1"]
[WhiteTeam "Ugra"]
[BlackTeam "Novy Bor"]
[TimeControl "40/5400+30:1800+30"]

1. c4 {[%emt 0:00:00]} e6 {[%emt 0:00:34]} 2. Nc3 {[%emt 0:00:00]} d5 {[%emt 0:00:07]} 3. d4 {[%emt 0:00:06]} Nf6 {[%emt 0:00:06]} 4. cxd5 {[%emt 0:00:15]} Nxd5 {[%emt 0:00:04]} 5. e4 {[%emt 0:00:04]} Nxc3 {[%emt 0:00:04]} 6. bxc3 {[%emt 0:00:03]} c5 {[%emt 0:00:05]} 7. Nf3 {[%emt 0:00:22]} cxd4 {[%emt 0:00:06]} 8. cxd4 {[%emt 0:00:03]} Bb4+ {[%emt 0:00:04]} 9. Bd2 {[%emt 0:00:04]} Bxd2+ {[%emt 0:00:03]} 10. Qxd2 {[%emt 0:00:04]} O-O {[%emt 0:00:05]} 11. Bc4 {[%emt 0:00:02]} Nd7 {[%emt 0:00:05]} 12. O-O {[%emt 0:00:16]} b6 {[%emt 0:00:08]} 13. Rad1 {[%emt 0:00:34]} Bb7 {[%emt 0:00:06]} 14. Rfe1 {[%emt 0:00:04]} Rc8 {[%emt 0:00:04]} 15. Bb3 {[%emt 0:00:17]} Re8 {[%emt 0:02:02]} 16. h4 {[%emt 0:00:34]} h6 {[%emt 0:04:08]} 17. Qf4 {[%emt 0:02:48]} Qc7 {[%emt 0:01:42]} 18. Qxc7 {[%emt 0:00:20]} Rxc7 {[%emt 0:00:06]} 19. d5 {[%emt 0:00:08]} exd5 {[%emt 0:07:31]} 20. exd5 {[%emt 0:00:40]} Rcc8 {[%emt 0:05:50]} 21. Rxe8+ {[%emt 0:01:37]} Rxe8 {[%emt 0:00:29]} 22. Ba4 {[%emt 0:00:21]} Rd8 {[%emt 0:01:10]} 23. Nd4 {[%emt 0:02:09]} Nc5 {[%emt 0:10:54]} 24. Bc6 {[%emt 0:00:25]} Bxc6 {[%emt 0:03:03]} 25. Nxc6 {[%emt 0:00:15]} Rd7 {[%emt 0:00:30]} 26. f3 {[%emt 0:00:11]} f6 {[%emt 0:05:30]} 27. Kf2 {[%emt 0:02:35]} Kf7 {[%emt 0:02:57]} 28. Ke3 {[%emt 0:10:42]} b5 {[%emt 0:12:51]} 29. Rd2 {[%emt 0:36:03]} h5 {[%emt 0:03:24]} 30. Kd4 {[%emt 0:06:14]} Ne6+ {[%emt 0:02:58]} 31. Ke4 {[%emt 0:15:57]} Nc5+ {[%emt 0:00:53]} 32. Kd4 {[%emt 0:00:29]} Ne6+ {[%emt 0:00:14]} 33. Ke4 {[%emt 0:06:48]} Nc5+ {[%emt 0:00:11]} 1/2-1/2